Cogmind - Beta 15 --- EXPLORER MODE // 2025.08.20 @ 23:04:59 Player: Aydz Result: Destroyed by 88-DZN(R) with Subdweller Machine Gun Performance ------------- Evolutions (0) 0 Regions Visited (2) 400 Robots Destroyed (39) 195 Value Destroyed (1036) 1036 Prototype IDs (6) 120 Alien Tech Used (0) 0 Bonus (0) 0 TOTAL SCORE: 1751 Bonus ------- None Cogmind --------- Core Integrity 0/250 Matter 276/300 Energy 265/265 System Corruption 0% Temperature Cool (0) Movement Treading (160) Location -10/Subcaves Parts ------- > --- POWER (1) -------- Improved Ion Engine > --- PROPULSION (2) --- Light Treads Light Treads > --- UTILITY (3) ------ Medium Storage Unit Power Shielding Makeshift Light Armor Plating > --- WEAPON (2) ------- Subdweller Machine Gun Subdweller Machine Gun > --- INVENTORY (10) --- Ion Engine Light Treads VTOL Module VTOL Module Makeshift System Restoration Module Riot Gun Light Cannon Light Cannon Mining Claw Peak State ------------ > --- POWER ------------ Improved Ion Engine > --- PROPULSION ------- Light Treads Light Treads > --- UTILITY ---------- Medium Storage Unit Power Shielding Makeshift Light Armor Plating > --- WEAPON ----------- Subdweller Machine Gun Subdweller Machine Gun > --- INVENTORY -------- Ion Engine Light Treads VTOL Module VTOL Module Makeshift System Restoration Module Riot Gun Light Cannon Light Cannon Mining Claw [Rating: 15] Favorites ----------- Power Ion Engine Engine Ion Engine Propulsion Light Treads Treads Light Treads Utility Medium Storage Unit Device Sensor Array Storage Medium Storage Unit Protection Light Armor Plating Weapon EM Pulse Gun Energy Gun EM Pulse Gun Ballistic Gun Subdweller Machine Gun Ballistic Cannon Light Cannon Slashing Weapon Mining Claw Build | -11 -10 -10 ------- Run | Yrd Mat Sub Slots Evolved 1 | . 1 . Power . | . . . Propulsion . | . . . Utility 1 | . 1 . Weapon . | . . . Parts Attached 20 | 8 . 12 Power 3 | 1 . 2 Engine 3 | 1 . 2 Core . | . . . Reactor . | . . . Propulsion 3 | 2 . 1 Treads 3 | 2 . 1 Leg . | . . . Wheel . | . . . Hover . | . . . Flight . | . . . Utility 6 | 3 . 3 Device 2 | 1 . 1 Storage 1 | 1 . . Processor . | . . . Hackware . | . . . Protection 3 | 1 . 2 Artifact . | . . . Weapon 8 | 2 . 6 Energy Gun 3 | 2 . 1 Energy Cannon . | . . . Ballistic Gun 2 | . . 2 Ballistic Cannon 2 | . . 2 Launcher . | . . . Special Weapon . | . . . Impact Weapon . | . . . Slashing Weapon 1 | . . 1 Piercing Weapon . | . . . Special Melee Weapon . | . . . Unidentified Prototypes . | . . . Parts Lost 5 | . . 5 Power 1 | . . 1 Propulsion 1 | . . 1 Utility 1 | . . 1 Weapon 2 | . . 2 Highest Loss Streak 3 | . . 3 To Critical Strikes . | . . . Average Backups 8 | 4 9 8 Power . | . 1 . Propulsion 3 | 1 4 3 Utility . | 2 1 . Weapon 2 | . 2 2 Tool/Special . | . . . Unused Backups 12 | 1 7 4 Power . | . . . Propulsion 7 | . 4 3 Utility 3 | 1 1 1 Weapon 2 | . 2 . Tool/Special . | . . . Average Slot Usage (%) 98 | . 99 98 Engine 11 | . 12 11 Treads 25 | . 25 25 Device 9 | . 11 7 Storage 12 | . 12 12 Protection 13 | . 11 15 Energy Gun 14 | . 24 6 Ballistic Gun 1 | . . 2 Ballistic Cannon 5 | . . 10 Slashing Weapon 3 | . . 5 Peak Build Rating 15 | 8 9 15 Average Rating 10 | 6 8 11 On Entrance 5 | . 8 9 Naked Turns . | . . . Heaviest Build 30 | 22 23 30 Greatest Support 40 | 40 40 40 Greatest Overweight (x) 1 | 1 . . Average Overweight (x) . | . . . Largest Inventory Capacity 10 | 10 10 10 Average Capacity 9 | 8 10 10 Most Carried 10 | 9 10 9 Average Carried 8 | 5 9 8 Final Capacity 10 | 10 10 10 Final Carried 9 | 9 9 9 Class Distribution -------------------- 100% | Hacker-Mutant Dominant Class ---------------- Hacker-Mutant | -10/Materials Hacker-Mutant | -10/Subcaves Resources | -11 -10 -10 ----------- Run | Yrd Mat Sub Matter Collected 910 | 280 60 570 Remotely . | . . . Salvage Created 1342 | 184 485 673 Parts 77 | 10 25 42 Haulers Intercepted . | . . . Recyclers Shooed . | . . . Parts Field Recycled . | . . . Retrieved Matter . | . . . Parts Self-Destructed . | . . . Prevented . | . . . Kills | -11 -10 -10 ------- Run | Yrd Mat Sub Combat Hostiles Destroyed 27 | . 8 19 Guns 15 | . 6 9 Cannons 9 | . . 9 AOE 2 | . 2 . Classes Destroyed 10 | 3 3 4 Worker 3 | 2 1 . Builder 1 | . 1 . Tunneler 2 | 2 . . Recycler 1 | 1 . . Turret 2 | . . 2 Watcher 3 | . 3 . Swarmer 6 | . . 6 Grunt 9 | . 8 1 Sentry 1 | . . 1 Subdweller 11 | . . 11 Best Kill Streak 6 | 4 3 6 Combat Bots Only 4 | . 2 4 Max Kills in Single Turn 3 | 1 3 1 Gunslinging 1 | . 1 . Exploded 2 | . 2 . Melee . | . . . Uniques/NPCs Destroyed . | . . . Combat | -11 -10 -10 -------- Run | Yrd Mat Sub Hostile Shots Fired 150 | . 18 132 Missed 48 | . 2 46 Hits 102 | . 16 86 Projectile 102 | . 16 86 Critical Strikes 2 | . . 2 Damage Taken 1129 | . 198 931 Core 256 | . 20 236 Absorbed by Shields . | . . . Redirected to Shielding 4 | . . 4 Ignored by Resistances 684 | . 121 563 Regen/Repaired (Parts) 116 | . 116 . Core Remaining (%) 100 | 100 . . Volleys Fired 106 | 7 19 80 Largest 2 | 2 2 2 Hottest 90 | 80 80 90 Shots Fired 209 | 14 38 157 Gun 135 | 14 38 83 Cannon 74 | . . 74 Launcher . | . . . Special . | . . . Kinetic 88 | . . 88 Thermal . | . . . Explosive . | . . . Electromagnetic 121 | 14 38 69 Robot Hit Streak 29 | 7 28 29 Robot Miss Streak 1 | 1 1 1 Penetration Max . | . . . Secondary Targets 4 | . 2 2 Max Gunslinging Chain 1 | . 1 1 Shots Hit Robots 178 | 10 34 134 Core Hits 67 | 5 19 43 Critical Kills . | . . . Critical Parts Destroyed . | . . . Critical Strikes 6 | . . 6 Blast 3 | . . 3 Corrupt 3 | . . 3 Melee Attacks 25 | . . 25 Impact . | . . . Slashing 25 | . . 25 Piercing . | . . . Sneak Attacks . | . . . Combat Hostiles . | . . . Follow-up Attacks . | . . . Damage Inflicted 3139 | 198 893 2048 Guns 1641 | 144 589 908 Cannons 1103 | . . 1103 Explosions 395 | 54 304 37 Melee . | . . . Ramming . | . . . Kinetic 1362 | . . 1362 Thermal 278 | 54 187 37 Explosive 117 | . 117 . Electromagnetic 1382 | 144 589 649 Impact . | . . . Slashing . | . . . Piercing . | . . . Highest Corruption . | . . . Average Corruption . | . . . Corruption Purged . | . . . Corruption Blocked . | . . . Overload Shots . | . . . Overflow Damage . | . . . Projectiles . | . . . Explosions . | . . . Melee . | . . . Knockbacks 11 | . . 11 Impact . | . . . Kinetic 11 | . . 11 Secondary . | . . . Self-Inflicted Damage 82 | . 82 . Shots 3 | . 3 . Rammed . | . . . Targets Rammed . | . . . Kicked . | . . . Crushed . | . . . Highest Temperature 186 | 81 186 7 Average Temperature 51 | 30 60 3 Received Heat Transfer 441 | . 108 333 Siege Activations . | . . . Martial Activations . | . . . Shielding Activations . | . . . Robots Disrupted . | . . . Combat Hostiles . | . . . Robots Corrupted 2 | . . 2 Combat Hostiles 1 | . . 1 Parts Fried 9 | 1 . 8 Impact Corruptions . | . . . Robots Melted . | . . . Combat Hostiles . | . . . Parts Melted . | . . . Heat Transferred 300 | 100 150 50 Parts Sabotaged . | . . . Parts Stolen . | . . . Parts Stripped . | . . . Power Chain Reactions 7 | 2 4 1 Alert | -11 -10 -10 ------- Run | Yrd Mat Sub Maximum Alert Level . | . . . Low Security (%) 100 | 100 100 . Level 1 . | . . . Level 2 . | . . . Level 3 . | . . . Level 4 . | . . . Level 5 . | . . . High Security . | . . . Max Security . | . . . Peak Influence 71 | 10 71 . Initial 4 | . 4 . Average 5 | 1 5 . Influence Increases 861 | 25 281 555 Destroy 0b10 Robot/C 360 | . 160 200 Destroy 0b10 Robot/NC 50 | 25 25 . Destroy Leader 56 | . 46 10 Successful Hack 18 | . 18 . Disable Machine 4 | . 4 . Destroy Structure 28 | . 28 . Lose Combat Pursuer 345 | . . 345 Influence Decreases 861 | 15 291 555 Entered New Map 6 | . 6 . Time Decay 815 | 15 285 515 Lost Part 40 | . . 40 Squads Dispatched 1 | . 1 . Investigation 1 | . 1 . Extermination . | . . . Reinforcement . | . . . Assault . | . . . Garrison . | . . . Intercept . | . . . Searches Triggered . | . . . Construction Impeded . | . . . Haulers Reinforced . | . . . Active Scanning Responses . | . . . Cargo Convoy Interrupts . | . . . Stealth | -11 -10 -10 --------- Run | Yrd Mat Sub Distress Signals . | . . . Communications Jammed . | . . . Distress Signals . | . . . Times Spotted 49 | . 12 37 Peak Tracking Total 4 | . 2 4 Tactical Retreats 4 | . . 4 Traps | -11 -10 -10 ------- Run | Yrd Mat Sub Traps Triggered 1 | . 1 . Indirectly . | . . . Trap Hack Attempts . | . . . Triggered . | . . . Disarmed . | . . . Reprogrammed . | . . . Reused . | . . . Traps Extracted . | . . . Installed . | . . . Triggered . | . . . Machines | -11 -10 -10 ---------- Run | Yrd Mat Sub Machines Disabled 3 | . 1 2 Max in Single Turn 1 | . 1 1 Machines Repaired . | . . . Machines Dismantled . | . . . Machines Sabotaged . | . . . Overloaded Fab Kills . | . . . Hacking | -11 -10 -10 --------- Run | Yrd Mat Sub Machines Accessed 13 | . 11 2 Terminals 8 | . 8 . Fabricators . | . . . Repair Stations 1 | . 1 . Recycling Units 2 | . 2 . Scanalyzers . | . . . Garrison Access . | . . . Total Hacks 51 | . 48 3 Successful 40 | . 37 3 Failed 11 | . 11 . Catastrophic . | . . . Database Lockouts . | . . . Manual 35 | . 35 . Terminals 34 | . 34 . Fabricators . | . . . Repair Stations 8 | . 8 . Recycling Units 6 | . 6 . Scanalyzers . | . . . Garrison Access . | . . . Terminal Hacks 16 | . 13 3 Record 1 | . . 1 Robot Analysis 4 | . 4 . Prototype ID Bank 4 | . 4 . Open Door 1 | . . 1 Terminal Index 1 | . 1 . Locate Traps 2 | . 2 . Hauler Manifests 1 | . 1 . Registered Components 1 | . 1 . Release Object 1 | . . 1 Fabricator Hacks . | . . . Repair Station Hacks 8 | . 8 . Scan Component 4 | . 4 . Repair 4 | . 4 . Recycling Unit Hacks 1 | . 1 . Retrieve Components 1 | . 1 . Scanalyzer . | . . . Garrison Access Hacks . | . . . Unauthorized Hacks 15 | . 15 . Terminals 12 | . 12 . Botnet 7 | . 7 . Skim 5 | . 5 . Fabricators . | . . . Repair Stations . | . . . Recycling Units 3 | . 3 . Reject 1 | . 1 . Recyclers 1 | . 1 . Mask 1 | . 1 . Scanalyzers . | . . . Garrison Access . | . . . Data Cores Recovered . | . . . Used . | . . . Hacking Detections 10 | . 10 . Full Trace Events 1 | . 1 . Feedback Events . | . . . Feedback Blocked . | . . . Robot Schematics Acquired . | . . . Robots Built . | . . . Authchips . | . . . Time . | . . . Total Robot Build Rating . | . . . Part Schematics Acquired . | . . . Parts Built . | . . . Authchips . | . . . Time . | . . . Total Part Build Rating . | . . . Parts Repaired 4 | . 4 . Time 104 | . 104 . Parts Recycled . | . . . Recycled Matter . | . . . Retrieved Matter . | . . . Retrieved Components 9 | . 9 . Parts Scanalyzed . | . . . Part Schematics Acquired . | . . . Parts Damaged . | . . . Bothacking | -11 -10 -10 ------------ Run | Yrd Mat Sub Used RIF Installer . | . . . Robots Hacked . | . . . Non-combat . | . . . Combat . | . . . Robot Hacks Applied . | . . . Relay Couplers Released . | . . . Fabnet Peak Effective % . | . . . Robots Rewired . | . . . Allies Hacked . | . . . Hacks Repelled . | . . . Allies | -11 -10 -10 -------- Run | Yrd Mat Sub Total Allies . | . . . Largest Group . | . . . Highest-Rated Group . | . . . Highest-Rated Ally . | . . . Total Orders . | . . . Ally Attacks . | . . . Total Damage . | . . . Kills . | . . . Allies Corrupted . | . . . Allies Melted . | . . . Intel | -11 -10 -10 ------- Run | Yrd Mat Sub Active Infowar (turns) 3222 | 31 1801 1390 Sensors 2107 | 31 1801 275 Terrain 1115 | . . 1115 Robot Analysis Total 4 | . 4 . Derelict Logs Recovered 1 | . . 1 Drone Launches . | . . . Drone Recoveries . | . . . Exploration | -11 -10 -10 ------------- Run | Yrd Mat Sub Turns Passed 4158 | 112 1805 2241 Spaces Moved 2109 | 45 931 1133 Core 3 | 3 . . Treads 2106 | 42 931 1133 Legs . | . . . Wheels . | . . . Hover . | . . . Flight . | . . . Fastest Speed 50 | 50 160 160 Average Speed 159 | 153 160 160 Slowest Speed 160 | 160 160 160 Overloaded Moves . | . . . Propulsion Burnouts . | . . . Robots Hopped . | . . . Potential Cave-ins . | . . . Cave-ins Triggered . | . . . Exploration Rate (%) 55 | 4 99 63 Regions Visited 2 Branch Regions 1 Pre-discovered Areas . | . . . Known Exits Taken 2 | 1 1 . Unknown Exits Taken . | . . . Scrap Searched 3 | . . 3 Spaces Dug 1 | . . 1 Terrain Destroyed 39 | 6 30 3 Melee 1 | . . 1 Projectile . | . . . AOE 38 | 6 30 2 Terrain Rammed . | . . . Walls Destroyed . | . . . Machines Disabled . | . . . Actions | -11 -10 -10 --------- Run | Yrd Mat Sub Total 2624 | 70 1209 1345 Wait 310 | . 235 75 Move 2107 | 44 930 1133 Hop . | . . . Pick Up 20 | 10 8 2 Fast Attach 19 | 7 8 4 Attach 5 | . 1 4 Detach 2 | . . 2 Swap 19 | 1 . 18 Drop 11 | 1 8 2 Fire 106 | 7 19 80 Melee 25 | . . 25 Ram . | . . . Kick . | . . . Crush . | . . . Escape Stasis . | . . . Rewire . | . . . Trap . | . . . Miscellaneous . | . . . Route ------- -11/Scrapyard -10/Materials (discovered 5 exits: *Mat x3 / *Min / *Sub) -10/Subcaves (discovered 3 exits: *Mat / *Rec / [*Scr]) History --------- Turn | Location | Event 13 | -11/Scrapyard | Identified exit to Materials 13 | -11/Scrapyard | Discovered exit to Materials (range 15) 113 | -11/Scrapyard | Entered Materials 113 | -10/Materials | Evolved 1 slot: Utility x1 114 | -10/Materials | Met a group of wandering Federalists 313 | -10/Materials | Build established: Hacker-Mutant 476 | -10/Materials | Repaired EM Pulse Gun 559 | -10/Materials | Identified exit to Materials 559 | -10/Materials | Discovered exit to Materials (range 16) 758 | -10/Materials | Identified exit to Subcaves 758 | -10/Materials | Discovered exit to Subcaves (range 8) 801 | -10/Materials | Identified exit to Mines 801 | -10/Materials | Discovered exit to Mines (range 6) 919 | -10/Materials | Discovered exit to Materials (range 6) 1171 | -10/Materials | Discovered exit to Materials (range 9) 1770 | -10/Materials | Repaired EM Pulse Gun 1798 | -10/Materials | Repaired EM Pulse Gun 1825 | -10/Materials | Repaired Lgt. Armor Plating 1918 | -10/Materials | Entered Subcaves 1919 | -10/Subcaves | Continued accompanying wandering Federalists (5) 2099 | -10/Subcaves | Learned location of 1 exit from Materials 2113 | -10/Subcaves | Identified exit to Materials 2113 | -10/Subcaves | Discovered exit to Materials (range 8) 2176 | -10/Subcaves | Wandering Federalist uncovered a shortcut to Scraptown 2232 | -10/Subcaves | Ambushed by Subdwellers from Twisted Machinery 2317 | -10/Subcaves | A swath of the cavern ceiling suddenly collapsed 2410 | -10/Subcaves | Identified exit to Recycling 2410 | -10/Subcaves | Discovered exit to Recycling (range 10) 2693 | -10/Subcaves | Lost 3 parts (1u2w) 2732 | -10/Subcaves | Core integrity fell below 50% 3784 | -10/Subcaves | Core integrity fell below 20% 3825 | -10/Subcaves | Shifting Twisted Machinery released Sub. Laser 3855 | -10/Subcaves | Shifting Twisted Machinery released Sub. Laser 4159 | -10/Subcaves | Destroyed by 88-DZN(R) with Subdweller Machine Gun Last Messages --------------- 03767_ QH-22L(R) Sub. Machine Gun blasted off. 03776_ QH-22L(R) destroyed. 03780_ 0S-Y12(R) knocked back. 03786_ 0S-Y12(R) destroyed. 03790_ Acquired 38 matter. 03795_ Acquired Sub. Machine Gun. 03796_ Acquired 5 matter. 03798_ Acquired 3 matter. 03809_ Acquired Sub. Machine Gun. 03810_ Acquired 18 matter. 03812_ Acquired 5 matter. 03813_ Acquired 3 matter. 03815_ Acquired 8 matter. 03817_ UK-5PL(R) destroyed. Sub. Laser falls loose from the Twisted Machinery. 03837_ R0-Z67(R) destroyed. 03846_ Acquired 17 matter. 03851_ ET-T55(R) destroyed. Sub. Laser falls loose from the Twisted Machinery. 03855_ Acquired 21 matter. Map ----- +----------------------------------------------------+ | | | | | | | | | | | | | | | | | | | ?????????????????????????????????????????????????? | | ?????????????????????????????????????????????????? | | ?????????????????????????????????????????????????? | | ?????????????????????????????????????????????????? | | ?????????????????????????????????????????????????? | | ?????????????????????????????????????????????????? | | ?????????????????????????#???????????????????????? | | ????????????????????????"#???????????????????????? | | ??????????????????????? "#???????????????????????? | | ??????????????????????# "#???????????????????????? | | ?????????????????????"" ?????????????????????????? | | ?????????????##?##### "??????????????????????????? | | ?????????????? # ?##????????????????????????? | | ???????????????? ##??